Cogmind - Beta 12 @@@ ROGUE MODE // 2023.09.29 @ 21:22:05 Player: 16th Result: Destroyed by G-47 Trooper with Particle Gun Performance ------------- Evolutions (2) 1000 Regions Visited (3) 600 Robots Destroyed (28) 140 Value Destroyed (735) 735 Prototype IDs (0) 0 Alien Tech Used (0) 0 Bonus (0) 0 TOTAL SCORE: 2475 Bonus ------- None Cogmind --------- Core Integrity 0/550 Matter 300/300 Energy 100/100 System Corruption 3% Temperature Cool (9) Movement Core (700) Ox13 Location -8/Materials Parts ------- > --- POWER (2) -------- (None) > --- PROPULSION (2) --- (None) > --- UTILITY (3) ------ High-capacity Storage Unit > --- WEAPON (4) ------- (None) > --- INVENTORY (20) --- Ion Engine Large Storage Unit Transport Network Coupler Targeting Computer Core Shielding EM Pulse Gun Grenade Launcher Peak State ------------ > --- POWER ------------ Ion Engine Light Deuterium Engine > --- PROPULSION ------- Aluminum Leg Aluminum Leg > --- UTILITY ---------- High-capacity Storage Unit Advanced Targeting Computer Improved Recalibrator > --- WEAPON ----------- EM Pulse Gun EM Pulse Gun EM Pulse Gun EM Pulse Gun > --- INVENTORY -------- Ion Engine Large Storage Unit Transport Network Coupler Targeting Computer Core Shielding EM Pulse Gun EM Pulse Gun EM Pulse Gun EM Pulse Gun Grenade Launcher [Rating: 21] Favorites ----------- Power Ion Engine Engine Ion Engine Propulsion Wheel Leg Aluminum Leg Wheel Wheel Utility High-capacity Storage Unit Device Improved Recalibrator Storage High-capacity Storage Unit Processor Targeting Computer Protection Backup Plating I Weapon EM Pulse Gun Energy Gun EM Pulse Gun Ballistic Gun Light Assault Rifle Launcher Grenade Launcher Build | -11 -10 -9 -8 ------- Run | Jun Mat Mat Mat Slots Evolved 4 | . . 2 2 Power 1 | . . 1 . Propulsion . | . . . . Utility 1 | . . . 1 Weapon 2 | . . 1 1 Parts Attached 33 | 5 17 2 9 Power 4 | 1 1 1 1 Engine 4 | 1 1 1 1 Core . | . . . . Reactor . | . . . . Propulsion 6 | 2 2 . 2 Treads . | . . . . Leg 4 | 2 . . 2 Wheel 2 | . 2 . . Hover . | . . . . Flight . | . . . . Utility 8 | . 6 . 2 Device 2 | . 1 . 1 Storage 2 | . 2 . . Processor 4 | . 3 . 1 Hackware . | . . . . Protection . | . . . . Artifact . | . . . . Weapon 15 | 2 8 1 4 Energy Gun 9 | 1 3 1 4 Energy Cannon . | . . . . Ballistic Gun 2 | 1 1 . . Ballistic Cannon . | . . . . Launcher 4 | . 4 . . Special Weapon . | . . . . Impact Weapon . | . . . . Slashing Weapon . | . . . . Piercing Weapon . | . . . . Special Melee Weapon . | . . . . Unidentified Prototypes . | . . . . Parts Lost 23 | . 7 . 16 Power 4 | . 1 . 3 Propulsion 6 | . 2 . 4 Utility 4 | . 2 . 2 Weapon 9 | . 2 . 7 Highest Loss Streak 12 | . 7 . 12 To Critical Strikes . | . . . . Average Slot Usage (%) 91 | . 87 100 92 Engine 15 | . 12 22 15 Leg 8 | . 9 . 11 Wheel 12 | . 14 22 5 Device 4 | . 6 . 5 Storage 6 | . 1 11 9 Processor 9 | . 7 11 11 Protection 3 | . 8 . . Energy Gun 26 | . 15 33 33 Ballistic Gun 1 | . 3 . . Launcher 2 | . 5 . . Naked Turns 2 | . 2 . . Heaviest Build 59 | 8 49 54 59 Greatest Support 20 | 20 20 20 20 Greatest Overweight (x) 17 | . 10 2 17 Average Overweight (x) 1 | . . 2 2 Largest Inventory Capacity 20 | 5 20 20 20 Average Capacity 14 | 5 6 20 20 Most Carried 14 | 5 9 14 13 Average Carried 7 | 1 3 12 10 Final Capacity 20 | 5 20 20 20 Final Carried 13 | . 9 13 7 Class Distribution -------------------- 51% | Scavenger-Gunner 28% | Mutant 16% | Scavenger-Mutant 3% | Gunner Dominant Class ---------------- Mutant | -10/Materials Scavenger-Gunner | -9/Materials Scavenger-Gunner | -8/Materials Resources | -11 -10 -9 -8 ----------- Run | Jun Mat Mat Mat Matter Collected 490 | . 349 60 81 Remotely . | . . . . Salvage Created 1393 | . 743 60 590 Parts 58 | . 39 6 13 Haulers Intercepted 1 | . 1 . . Recyclers Shooed 7 | . 6 . 1 Parts Field Recycled . | . . . . Retrieved Matter . | . . . . Parts Self-Destructed . | . . . . Prevented . | . . . . Kills | -11 -10 -9 -8 ------- Run | Jun Mat Mat Mat Combat Hostiles Destroyed 16 | . 7 1 8 Guns 13 | . 7 1 5 Classes Destroyed 10 | . 7 1 2 Worker 3 | . 2 . 1 Builder 1 | . 1 . . Hauler 1 | . 1 . . Recycler 4 | . 4 . . Mechanic 1 | . . . 1 Watcher 2 | . 1 . 1 Swarmer 2 | . 2 . . Grunt 11 | . 5 . 6 Duelist 1 | . . . 1 Sentry 2 | . . 1 1 Best Kill Streak 5 | . 5 1 3 Combat Bots Only 3 | . 3 1 2 Max Kills in Single Turn 1 | . 1 1 1 Gunslinging . | . . . . Exploded . | . . . . Melee . | . . . . Uniques/NPCs Destroyed . | . . . . Combat | -11 -10 -9 -8 -------- Run | Jun Mat Mat Mat Damage Taken 2188 | . 743 33 1412 Core 714 | . 145 15 554 Absorbed by Shields . | . . . . Core Remaining (%) 79 | 100 42 96 . Volleys Fired 107 | . 74 1 32 Largest 4 | . 2 3 4 Hottest 160 | . 80 120 160 Shots Fired 208 | . 90 3 115 Gun 206 | . 88 3 115 Cannon . | . . . . Launcher 2 | . 2 . . Special . | . . . . Kinetic 25 | . 25 . . Thermal . | . . . . Explosive 2 | . 2 . . Electromagnetic 181 | . 63 3 115 Robot Hit Streak 12 | . 12 6 10 Robot Miss Streak 4 | . 4 . 2 Penetration Max . | . . . . Secondary Targets 2 | . . . 2 Max Gunslinging Chain 1 | . . . 1 Shots Hit Robots 144 | . 59 3 82 Core Hits 56 | . 24 2 30 Critical Kills . | . . . . Critical Parts Destroyed . | . . . . Critical Strikes 4 | . 2 . 2 Corrupt 4 | . 2 . 2 Melee Attacks . | . . . . Impact . | . . . . Slashing . | . . . . Piercing . | . . . . Sneak Attacks . | . . . . Combat Hostiles . | . . . . Follow-up Attacks . | . . . . Damage Inflicted 2267 | . 830 33 1404 Guns 1872 | . 738 33 1101 Cannons . | . . . . Explosions 379 | . 76 . 303 Melee . | . . . . Ramming 16 | . 16 . . Kinetic 111 | . 111 . . Thermal 359 | . 56 . 303 Explosive 20 | . 20 . . Electromagnetic 1761 | . 627 33 1101 Impact . | . . . . Slashing . | . . . . Piercing . | . . . . Highest Corruption 3 | . 1 . 3 Average Corruption 1 | . 1 . 3 Corruption Purged . | . . . . Corruption Blocked . | . . . . Effects 5 | . 4 . 1 Message Errors 1 | . 1 . . Matter Fused 2 | . 2 . . Heat Flow Errors 1 | . 1 . . Energy Discharges 1 | . . . 1 Overload Shots . | . . . . Overflow Damage 34 | . . . 34 Projectiles . | . . . . Explosions 34 | . . . 34 Melee . | . . . . Knockbacks . | . . . . Impact . | . . . . Kinetic . | . . . . Secondary . | . . . . Self-Inflicted Damage 91 | . 45 . 46 Shots 3 | . 2 . 1 Rammed . | . . . . Targets Rammed 9 | . 9 . . Kicked 9 | . 9 . . Crushed . | . . . . Highest Temperature 455 | . 293 75 455 Average Temperature 125 | . 64 39 160 Received Heat Transfer 1017 | . 180 9 828 Effects 2 | . . . 2 Shutdowns 1 | . . . 1 Interference 1 | . . . 1 Siege Activations . | . . . . Robots Corrupted 3 | . . . 3 Combat Hostiles 3 | . . . 3 Parts Fried 12 | . 3 . 9 Impact Corruptions . | . . . . Robots Melted . | . . . . Combat Hostiles . | . . . . Parts Melted . | . . . . Heat Transferred 450 | . 100 . 350 Parts Sabotaged . | . . . . Parts Stolen . | . . . . Parts Stripped . | . . . . Power Chain Reactions 6 | . 2 . 4 Missiles Intercepted . | . . . . Alert | -11 -10 -9 -8 ------- Run | Jun Mat Mat Mat Peak Influence 339 | . 222 54 339 Initial 22 | . . 9 22 Average 97 | . 75 39 158 Maximum Alert Level 1 | . 1 . 1 Low Security (%) 85 | 100 95 100 65 Level 1 14 | . 4 . 34 Level 2 . | . . . . Level 3 . | . . . . Level 4 . | . . . . Level 5 . | . . . . High Security . | . . . . Max Security . | . . . . Squads Dispatched 1 | . 1 . . Investigation 1 | . 1 . . Extermination . | . . . . Reinforcement . | . . . . Assault . | . . . . Garrison . | . . . . Intercept . | . . . . Searches Triggered . | . . . . Construction Impeded . | . . . . Haulers Reinforced . | . . . . Active Scanning Responses . | . . . . Cargo Convoy Interrupts . | . . . . Stealth | -11 -10 -9 -8 --------- Run | Jun Mat Mat Mat Distress Signals 6 | . 2 . 4 Communications Jammed . | . . . . Distress Signals . | . . . . Times Spotted 36 | . 15 1 20 Peak Tracking Total 6 | . 6 1 5 Tactical Retreats 4 | . 1 . 3 Traps | -11 -10 -9 -8 ------- Run | Jun Mat Mat Mat Traps Triggered 2 | . 2 . . Indirectly . | . . . . Trap Hack Attempts . | . . . . Triggered . | . . . . Disarmed . | . . . . Reprogrammed . | . . . . Reused . | . . . . Traps Extracted . | . . . . Installed . | . . . . Triggered . | . . . . Machines | -11 -10 -9 -8 ---------- Run | Jun Mat Mat Mat Machines Disabled 3 | . 1 . 2 Max in Single Turn 1 | . 1 . 1 Machines Repaired . | . . . . Machines Sabotaged . | . . . . Overloaded Fab Kills . | . . . . Hacking | -11 -10 -9 -8 --------- Run | Jun Mat Mat Mat Machines Accessed 3 | . 2 1 . Terminals . | . . . . Fabricators . | . . . . Repair Stations 1 | . 1 . . Recycling Units 2 | . 1 1 . Scanalyzers . | . . . . Garrison Access . | . . . . Total Hacks 8 | . 5 3 . Successful 7 | . 4 3 . Failed 1 | . 1 . . Catastrophic . | . . . . Database Lockouts . | . . . . Manual . | . . . . Terminals . | . . . . Fabricators . | . . . . Repair Stations 2 | . 2 . . Recycling Units 6 | . 3 3 . Scanalyzers . | . . . . Garrison Access . | . . . . Terminal Hacks . | . . . . Fabricator Hacks . | . . . . Repair Station Hacks 1 | . 1 . . Refit 1 | . 1 . . Recycling Unit Hacks 6 | . 3 3 . Recycle Component 1 | . . 1 . Process 1 | . . 1 . Report Inventory 2 | . 1 1 . Retrieve Components 2 | . 2 . . Scanalyzer . | . . . . Garrison Access Hacks . | . . . . Unauthorized Hacks . | . . . . Terminals . | . . . . Fabricators . | . . . . Repair Stations . | . . . . Recycling Units . | . . . . Scanalyzers . | . . . . Garrison Access . | . . . . Data Cores Recovered . | . . . . Used . | . . . . Hacking Detections 1 | . 1 . . Full Trace Events . | . . . . Feedback Events . | . . . . Feedback Blocked . | . . . . Robot Schematics Acquired . | . . . . Robots Built . | . . . . Authchips . | . . . . Time . | . . . . Total Robot Build Rating . | . . . . Part Schematics Acquired . | . . . . Parts Built . | . . . . Authchips . | . . . . Time . | . . . . Total Part Build Rating . | . . . . Parts Repaired . | . . . . Time . | . . . . Parts Recycled 1 | . . 1 . Recycled Matter 13 | . . 13 . Retrieved Matter . | . . . . Retrieved Components 10 | . 10 . . Parts Scanalyzed . | . . . . Part Schematics Acquired . | . . . . Parts Damaged . | . . . . Bothacking | -11 -10 -9 -8 ------------ Run | Jun Mat Mat Mat Used RIF Installer . | . . . . Robots Hacked . | . . . . Non-combat . | . . . . Combat . | . . . . Robot Hacks Applied . | . . . . Relay Couplers Released . | . . . . Fabnet Peak Effective % . | . . . . Robots Rewired . | . . . . Allies Hacked . | . . . . Hacks Repelled . | . . . . Allies | -11 -10 -9 -8 -------- Run | Jun Mat Mat Mat Total Allies . | . . . . Largest Group . | . . . . Highest-Rated Group . | . . . . Highest-Rated Ally . | . . . . Total Orders . | . . . . Ally Attacks . | . . . . Total Damage . | . . . . Kills . | . . . . Allies Corrupted . | . . . . Allies Melted . | . . . . Intel | -11 -10 -9 -8 ------- Run | Jun Mat Mat Mat Robot Analysis Total . | . . . . Derelict Logs Recovered . | . . . . Drone Launches . | . . . . Drone Recoveries . | . . . . Exploration | -11 -10 -9 -8 ------------- Run | Jun Mat Mat Mat Turns Passed 1125 | 33 439 222 431 Spaces Moved 580 | 26 227 191 136 Core 26 | 10 12 . 4 Treads . | . . . . Legs 150 | 16 74 . 60 Wheels 404 | . 141 191 72 Hover . | . . . . Flight . | . . . . Fastest Speed 50 | 50 50 110 110 Average Speed 124 | 93 97 110 197 Slowest Speed 900 | 120 550 110 900 Overloaded Moves . | . . . . Propulsion Burnouts . | . . . . Robots Hopped . | . . . . Cave-ins Triggered . | . . . . Exploration Rate (%) 15 | 3 31 16 12 Regions Visited 3 Branch Regions . Pre-discovered Areas . | . . . . Known Exits Taken . | . . . . Unknown Exits Taken 3 | 1 1 1 . Scrap Searched . | . . . . Spaces Dug . | . . . . Terrain Destroyed 25 | . 16 . 9 Melee . | . . . . Projectile . | . . . . AOE 25 | . 16 . 9 Terrain Rammed . | . . . . Walls Destroyed . | . . . . Machines Disabled . | . . . . Actions | -11 -10 -9 -8 --------- Run | Jun Mat Mat Mat Total 822 | 35 359 200 228 Wait 49 | . 2 . 47 Move 577 | 25 226 190 136 Hop . | . . . . Pick Up 37 | 5 22 7 3 Fast Attach 2 | . 2 . . Attach 26 | 5 10 2 9 Detach . | . . . . Swap 5 | . 5 . . Drop 10 | . 9 . 1 Fire 107 | . 74 1 32 Melee . | . . . . Ram . | . . . . Kick 9 | . 9 . . Crush . | . . . . Escape Stasis . | . . . . Rewire . | . . . . Trap . | . . . . Miscellaneous . | . . . . Route ------- -11/Junkyard -10/Materials (discovered 2 exits: *Mat / [*Min]) -9/Materials -8/Materials History --------- Turn | Location | Event 6 | -11/Junkyard | Discovered new exit (range 16) 34 | -11/Junkyard | Entered Materials 56 | -10/Materials | Discovered new exit (range 16) 204 | -10/Materials | Core integrity fell below 50% 226 | -10/Materials | Lost 7 parts (1p2n2u2w) 423 | -10/Materials | Discovered new exit (range 16) 473 | -10/Materials | Entered another Materials area 473 | -9/Materials | Evolved 2 slots: Power x1, Weapon x1 667 | -9/Materials | Discovered new exit (range 4) 695 | -9/Materials | Entered another Materials area 695 | -8/Materials | Evolved 2 slots: Utility x1, Weapon x1 765 | -8/Materials | Build established: Scavenger-Gunner 852 | -8/Materials | Lost 3 parts (1p2n) 1109 | -8/Materials | Core integrity fell below 50% 1121 | -8/Materials | Core integrity fell below 20% 1126 | -8/Materials | Destroyed by G-47 Trooper with Particle Gun Last Messages --------------- Knocked back. G-47 Trooper IFF system glitched. B-36 Bruiser destroyed. U-05 Engineer builds a Wall. EM Pulse Gun destroyed. Imp. Recalibrator destroyed. U-05 Engineer builds a Wall. U-05 Engineer lays Concrete. Critical hit (Burn: +37). U-05 Engineer lays Concrete. System corrupted: Energy discharge (-29). M-13 Machinist repairs G-47 Trooper. G-47 Trooper IFF system glitched. U-05 Engineer lays Concrete. M-13 Machinist fits Backup Power I on G-47 Trooper. U-05 Engineer lays Concrete. Critical hit (Burn: +37). M-13 Machinist repairs Particle Gun. U-05 Engineer lays Concrete. G-47 Trooper misfires. Map ----- +----------------------------------------------------+ | #??????????????????????????????????????? | | """ #??????????????????????????????????????? | | """ G" #??????????????????????????????????????? | | """ """ #??????????????????????????????????????? | | """ #??????????????????????????????????????? | | #??????? ????????????????????????????? | | [#????? ????????????????????????????? | | [ #?????? #???????????????????????????? | | ##########?????? #???????????????????????????? | | ##########?????? #???????????????????????????? | | #?????? #???????????????????????????? | | #??????# #???????????????????????????? | | "" """ #??????# ???????????????????????????? | | " """ #??????# #???????????????????????????? | | "" """ #??????# #???????????????????????????? | | #??????+ ##########??????????????????? | | #??????# # #??????????????????? | | "T" #??????# #[ #??????????????????? | | ##+############## # #??????????????????? | | % [#= !! " #??????????????????? | | =%u =g!g !#??????????????????? | | % = #m g] g%#??????????????????? | | ################# *# u /#??????????????????? | | ????????????????# # #??????????????????? | | ????????????????# # ! #??????????????????? | | ????????????????# ### #@####??????????????????? | | ???????????????? #?### #?????????????????????? | | ??????????????? #???# #?????????????????????? | | ?????????????? #???# #?????????????????????? | | ?????????????+#######???# #?????????????????????? | | ????????????????????????# #?????????????????????? | | ???????????????????????? #?????????????????????? | | ????????????????????????###?????????????????????? | | ????????????????????????????????????????????????? | | ????????????????????????????????????????????????? | | ????????????????????????????????????????????????? | | ????????????????????????????????????????????????? | | ????????????????????????????????????????????????? | | ????????????????????????????????????????????????? | | ????????????????????????????????????????????????? | | ????????????????????????????????????????????????? | | ????????????????????????????????????????????????? | | ????????????????????????????????????????????????? | | ????????????????????????????????????????????????? | | ????????????????????????????????????????????????? | | ????????????????????????????????????????????????? | | ????????????????????????????????????????????????? | | ????????????????????????????????????????????????? | | ????????????????????????????????????????????????? | | ????????????????????????????????????????????????? | +----------------------------------------------------+ Best States ------------- Heat Dissipation 31 Energy Generation 19 Energy Capacity 290 Matter Stores 300 Matter Capacity 300 Sight Range 16 Terrain Scan Density 85 Armor Coverage 160 Evasion (%) 55 Targeting Accuracy 13 Item Schematics ----------------- None Robot Schematics ------------------ None Fabricated ------------ Nothing Alien Tech Used ----------------- None Achievements -------------- Hey, That's Mine! Oops Challenges ------------ None Game ------ Seed ShieldLightpackSlayer Manual? 0 Play Time 00:24:49 Cumulative 2.9 hours Start 2023.09.29 @ 20:59:07 End 2023.09.29 @ 21:22:05 Sessions 1 Manual Loads 0 Difficulty Rogue Special Mode None Game No. 6 Rogue 6 Adventurer 0 Explorer 0 Win Type - Total 0 Types 0/0/0/0/0/0/0/0/0 Lore% 2 Gallery% 8 Achievement% 6 Wizard Run 0 Options --------- ASCII 0 Keyboard 0 Movement Mouse Keybinds 0 Fullscreen 1 Font 18/SmallcapsGlow Map View 76x50 Tactical HUD 0 Map Filters NONE Filters NONE Steam 1 RUN: 38e5257f-fa2d-4422-a47f-4148b69f97e5